bitfinex-derivatives/quotes_BTCF0:USTF0_20230701
["timestamp","ask_amount","ask_price","bid_price","bid_amount"]
[1688235599925,0.2663,30612.0,30611.0,0.27808067]
[1688235600339,0.2663,30612.0,30611.0,0.29693012]
[1688235601028,0.2663,30612.0,30611.0,0.28585045]
[1688235601216,0.2663,30612.0,30611.0,0.267001]
[1688235602420,0.2663,30612.0,30611.0,0.29693012]
[1688235603232,0.2663,30612.0,30611.0,0.28585045]
[1688235603433,0.2663,30612.0,30611.0,0.29693012]
[1688235603738,0.2663,30612.0,30611.0,0.27732912]
[1688235603927,0.2663,30612.0,30611.0,0.26624945]
[1688235604323,0.2663,30612.0,30611.0,0.2474]
[1688235606040,0.2763829,30612.0,30611.0,0.2474]
[1688235607934,0.2763829,30612.0,30611.0,0.25847967]
[1688235608137,0.2763829,30612.0,30611.0,0.2474]
[1688235608335,0.2763829,30612.0,30611.0,0.27732912]
[1688235608635,0.2763829,30612.0,30611.0,0.28585045]
[1688235608937,0.2763829,30612.0,30611.0,0.29693012]
[1688235609330,0.2763829,30612.0,30611.0,0.35132563]
[1688235610430,0.2763829,30612.0,30611.0,0.29693012]
[1688235610631,0.2763829,30612.0,30611.0,0.29685544]
[1688235611634,0.2763829,30612.0,30611.0,0.26692632]
[1688235612142,0.29461259,30612.0,30611.0,0.26692632]
[1688235613134,0.29461259,30612.0,30611.0,0.24732532]
[1688235613531,0.04791259,30612.0,30610.0,0.3608]
[1688235613734,0.26562969,30611.0,30610.0,0.3608]
[1688235614036,0.28523069,30611.0,30610.0,0.3608]
[1688235614237,0.29390108,30611.0,30610.0,0.6082]
[1688235615344,0.27567139,30611.0,30610.0,0.6082]
[1688235615847,0.29390108,30611.0,30610.0,0.6082]
[1688235618047,0.27567139,30611.0,30610.0,0.6082]
[1688235618850,0.27567139,30611.0,30610.0,0.627802]
[1688235619752,0.27567139,30611.0,30610.0,0.267002]
[1688235621358,0.29390108,30611.0,30610.0,0.267002]
[1688235621760,0.27567139,30611.0,30610.0,0.267002]
[1688235622058,0.29390108,30611.0,30610.0,0.267002]
[1688235623962,0.29390108,30611.0,30610.0,0.019602]
[1688235625354,0.27567139,30611.0,30610.0,0.019602]
[1688235626155,0.29390108,30611.0,30610.0,0.019602]
[1688235629063,0.29390108,30611.0,30610.0,0.380402]
[1688235629248,0.27567139,30611.0,30610.0,0.380402]
[1688235630157,0.29390108,30611.0,30610.0,0.380402]
[1688235632753,0.29390108,30611.0,30610.0,0.019602]
[1688235635567,0.27567139,30611.0,30610.0,0.019602]
[1688235635763,0.29390108,30611.0,30610.0,0.019602]
[1688235635963,0.29378363,30611.0,30610.0,0.019602]
[1688235636668,0.27555394,30611.0,30610.0,0.019602]
[1688235636968,0.29378363,30611.0,30610.0,0.019602]
[1688235637770,0.27555394,30611.0,30610.0,0.019602]
[1688235638870,0.29378363,30611.0,30610.0,0.019602]
[1688235639565,0.27555394,30611.0,30610.0,0.019602]
[1688235639866,0.29378363,30611.0,30610.0,0.019602]
[1688235641777,0.28511324,30611.0,30610.0,0.019602]
[1688235643777,0.26688355,30611.0,30610.0,0.019602]
[1688235644077,0.28511324,30611.0,30610.0,0.019602]
[1688235644467,0.26688355,30611.0,30610.0,0.019602]
[1688235644666,0.28511324,30611.0,30610.0,0.019602]
[1688235649274,0.28511324,30611.0,30610.0,0.01950378]
[1688235650782,0.24728255,30611.0,30610.0,0.03835323]
[1688235651883,0.24728255,30611.0,30610.0,0.38030378]
[1688235653596,0.28511324,30611.0,30610.0,0.38030378]
[1688235653983,0.28511324,30611.0,30610.0,0.62770378]
[1688235654184,0.03783069,30611.0,30610.0,0.62770378]
[1688235654372,0.019601,30611.0,30610.0,0.62770378]
[1688235656285,0.019601,30611.0,30610.0,0.64655323]
[1688235656685,0.019601,30611.0,30610.0,0.28575323]
[1688235659980,0.294402,30612.0,30610.0,0.28575323]
[1688235660174,0.31263169,30612.0,30611.0,0.2462]
[1688235660379,0.294402,30612.0,30611.0,0.265801]
[1688235660584,0.31263169,30612.0,30611.0,0.265801]
[1688235662285,0.29425536,30612.0,30611.0,0.265801]
[1688235662495,0.31248505,30612.0,30611.0,0.265801]
[1688235663691,0.29425536,30612.0,30611.0,0.2462]
[1688235665895,0.31248505,30612.0,30611.0,0.2462]
[1688235667798,0.29425536,30612.0,30611.0,0.2462]
[1688235668389,0.31248505,30612.0,30611.0,0.2462]
[1688235668902,0.29425536,30612.0,30611.0,0.2462]
[1688235670296,0.31248505,30612.0,30611.0,0.2462]
[1688235674201,0.31248505,30612.0,30611.0,0.2474]
[1688235676310,0.31248505,30612.0,30611.0,0.24729042]
[1688235676493,0.29425536,30612.0,30611.0,0.24729042]
[1688235676804,0.31248505,30612.0,30611.0,0.24729042]
[1688235679899,0.67328505,30612.0,30611.0,0.24729042]
[1688235681107,0.31248505,30612.0,30611.0,0.24729042]
[1688235681308,0.67328505,30612.0,30611.0,0.24729042]
[1688235682007,0.31248505,30612.0,30611.0,0.24729042]
[1688235682202,0.67328505,30612.0,30611.0,0.24729042]
[1688235682707,0.31248505,30612.0,30611.0,0.24729042]
[1688235682906,0.67328505,30612.0,30611.0,0.24729042]
[1688235684106,0.67328505,30612.0,30610.0,0.2462]
[1688235684305,0.2461,30611.0,30610.0,0.2462]
[1688235684602,0.28393069,30611.0,30610.0,0.2462]
[1688235684803,0.28393069,30611.0,30608.0,0.30937716]
[1688235685007,0.6062,30609.0,30608.0,0.00017716]
[1688235685205,0.625802,30609.0,30608.0,0.00017716]
[1688235685709,0.64403169,30609.0,30608.0,0.00017716]
[1688235688499,0.70856448,30609.0,30608.0,0.00017716]
[1688235690406,0.70856448,30609.0,30608.0,6.967e-05]
[1688235691513,0.34776448,30609.0,30608.0,6.967e-05]
[1688235693109,0.34776448,30609.0,30608.0,0.00468247]
[1688235694521,0.28323169,30609.0,30608.0,0.00468247]
[1688235696314,0.30918708,30609.0,30608.0,0.00468247]
[1688235704324,0.30918708,30609.0,30608.0,0.004502]
[1688235717330,0.30896707,30609.0,30608.0,0.004502]
[1688235718738,0.30896707,30609.0,30606.0,0.294311]
[1688235718930,0.2461,30607.0,30606.0,0.294311]
[1688235719126,0.265704,30607.0,30606.0,0.294311]
[1688235720135,0.28393369,30607.0,30606.0,0.294311]
[1688235720331,0.265704,30607.0,30606.0,0.294311]
[1688235722930,0.265704,30607.0,30606.0,0.30996548]
[1688235723932,0.265704,30607.0,30606.0,0.29888581]
[1688235724137,0.266304,30607.0,30606.0,0.29888581]
[1688235724539,0.28453369,30607.0,30606.0,0.29888581]
[1688235724742,0.28453369,30607.0,30606.0,0.24987481]
[1688235725047,0.266304,30607.0,30606.0,0.24987481]
[1688235727538,0.28453369,30607.0,30606.0,0.24987481]
[1688235727736,0.266304,30607.0,30606.0,0.24987481]
[1688235728035,0.266304,30607.0,30606.0,0.26947881]
[1688235730831,0.266304,30607.0,30606.0,0.2693606]
[1688235731938,0.266304,30607.0,30606.0,0.6301606]
[1688235734347,0.265004,30607.0,30606.0,0.6301606]
[1688235740754,0.265004,30607.0,30606.0,0.2693606]
[1688235744954,0.265004,30607.0,30606.0,0.26925958]
[1688235747055,0.28323369,30607.0,30606.0,0.26925958]
[1688235747443,0.265004,30607.0,30606.0,0.26925958]
[1688235748651,0.265004,30607.0,30606.0,0.24965558]
[1688235748859,0.28523369,30607.0,30606.0,0.00457481]
[1688235749547,0.58693369,30607.0,30606.0,0.00457481]
[1688235752541,0.58693369,30607.0,30604.0,0.5738]
[1688235752754,0.265205,30605.0,30604.0,0.5738]
[1688235753340,0.28343469,30605.0,30604.0,0.5738]
[1688235753548,0.28523469,30605.0,30602.0,0.019606]
[1688235753747,0.267006,30603.0,30602.0,0.019606]
[1688235753959,0.267006,30603.0,30602.0,0.350506]
[1688235754261,0.267006,30603.0,30602.0,0.595806]
[1688235754757,0.28523569,30603.0,30602.0,0.595806]
[1688235759055,0.267006,30603.0,30602.0,0.595806]
[1688235760066,0.267006,30603.0,30602.0,0.59571626]
[1688235762949,0.28523569,30603.0,30602.0,0.59571626]
[1688235763560,0.267006,30603.0,30602.0,0.59571626]
[1688235764057,0.267006,30603.0,30602.0,0.59781626]
[1688235764261,0.28523569,30603.0,30602.0,0.59781626]
[1688235765067,0.28523569,30603.0,30602.0,0.95861626]
[1688235765364,0.267006,30603.0,30602.0,0.95861626]
[1688235766065,0.267006,30603.0,30602.0,0.59781626]
[1688235766256,0.267006,30603.0,30602.0,0.95861626]
[1688235766565,0.267006,30603.0,30602.0,0.59781626]
[1688235766871,0.28523569,30603.0,30602.0,0.95861626]
[1688235767966,0.28523569,30603.0,30602.0,0.60242976]
[1688235768265,0.31176265,30603.0,30602.0,0.60242976]
[1688235768666,0.29353296,30603.0,30602.0,0.60242976]
[1688235769354,0.27392696,30603.0,30602.0,0.60242976]
[1688235769758,0.02652696,30603.0,30602.0,0.63235888]
[1688235770054,0.058818,30605.0,30602.0,0.63235888]
[1688235770259,0.058818,30605.0,30604.0,0.2462]
[1688235770458,0.058818,30605.0,30604.0,0.27041743]
[1688235771064,0.08529788,30605.0,30604.0,0.30034655]
[1688235772771,0.08529788,30605.0,30604.0,0.66114655]
[1688235772772,0.02657394,30605.0,30604.0,0.66114655]
[1688235772961,0.4587229,30608.0,30604.0,0.66114655]
[1688235773162,0.4391199,30608.0,30607.0,0.627804]
[1688235773362,0.4391199,30608.0,30607.0,0.68219951]
[1688235773564,0.80833447,30608.0,30607.0,0.68677582]
[1688235773767,0.80833447,30608.0,30607.0,0.71670494]
[1688235774563,0.51302418,30608.0,30607.0,0.71670494]
[1688235774966,0.51302418,30608.0,30607.0,0.66230943]
[1688235778970,0.48684173,30608.0,30607.0,0.66230943]
[1688235779273,0.49065163,30609.0,30607.0,0.66230943]
[1688235779464,0.49065163,30609.0,30608.0,0.27732912]
[1688235779666,0.49065163,30609.0,30608.0,0.29693212]
[1688235779868,0.49065163,30609.0,30608.0,0.30150349]
[1688235780673,0.48449303,30609.0,30608.0,0.30150349]
[1688235783171,0.345645,30609.0,30608.0,0.66230349]
[1688235783371,0.32142077,30615.0,30608.0,0.87977437]
[1688235783573,0.32142077,30615.0,30614.0,0.6082]
[1688235783767,0.32142077,30615.0,30614.0,0.627799]
[1688235783962,0.81442382,30615.0,30614.0,0.65772812]
[1688235784364,0.81442382,30615.0,30614.0,0.97292812]
[1688235784575,0.84055882,30615.0,30614.0,0.97292812]
[1688235784775,0.86015782,30615.0,30614.0,0.95332912]
[1688235784973,0.53873705,30615.0,30614.0,0.95332912]
[1688235788768,0.53873705,30615.0,30614.0,0.97292812]
[1688235789176,0.53873705,30615.0,30614.0,0.61212812]
[1688235789478,0.53873705,30615.0,30614.0,0.97292812]
[1688235794381,0.51913805,30615.0,30614.0,0.97292812]
[1688235794970,0.51913805,30615.0,30614.0,0.61212812]
[1688235796375,0.51913805,30615.0,30614.0,0.60104845]
[1688235796575,0.53873705,30615.0,30614.0,0.60104845]
[1688235796776,0.86423705,30615.0,30614.0,0.60104845]
[1688235796978,0.86423705,30615.0,30614.0,0.61212812]
[1688235797673,0.86423705,30615.0,30614.0,0.582199]
[1688235797976,0.86423705,30615.0,30614.0,0.61212812]
[1688235798483,0.86423705,30615.0,30614.0,0.59252912]
[1688235799274,0.86423705,30615.0,30614.0,0.58144945]
[1688235799679,0.86423705,30615.0,30614.0,0.59252912]
[1688235802784,0.86423705,30615.0,30614.0,0.61212812]
[1688235803380,0.86423705,30615.0,30614.0,0.58144945]
[1688235803786,0.86423705,30615.0,30614.0,0.59252912]
[1688235804087,0.86423705,30615.0,30614.0,0.58144945]
[1688235804382,0.86423705,30615.0,30614.0,0.59252912]
[1688235805083,0.86423705,30615.0,30614.0,0.61212812]
[1688235806183,0.86423705,30615.0,30614.0,0.59252912]
[1688235807681,0.86423705,30615.0,30614.0,0.58144945]
[1688235807886,0.86423705,30615.0,30614.0,0.5626]
[1688235809390,0.86423705,30615.0,30614.0,0.59252912]
[1688235809779,0.86423705,30615.0,30614.0,0.58144945]
[1688235809979,0.86423705,30615.0,30614.0,0.59252912]
[1688235810382,0.86423705,30615.0,30614.0,0.58144945]
[1688235813181,0.85923705,30615.0,30614.0,0.58144945]
[1688235813984,0.85923705,30615.0,30614.0,0.5626]
[1688235814493,0.87746674,30615.0,30614.0,0.5626]
[1688235814694,0.85923705,30615.0,30614.0,0.5626]
[1688235815395,0.87746674,30615.0,30614.0,0.5626]
[1688235816495,0.85923705,30615.0,30614.0,0.5626]
[1688235816697,0.87746674,30615.0,30614.0,0.5626]
[1688235816995,0.85923705,30615.0,30614.0,0.5626]
[1688235817196,0.87746674,30615.0,30614.0,0.5626]
[1688235820694,0.85923705,30615.0,30614.0,0.5626]
[1688235821089,0.87746674,30615.0,30614.0,0.5626]
[1688235822001,0.85923705,30615.0,30614.0,0.58144945]
[1688235822200,0.87746674,30615.0,30614.0,0.58144945]
[1688235822688,0.87746674,30615.0,30614.0,0.5626]
[1688235825998,0.87746674,30615.0,30614.0,0.58144945]
[1688235825999,0.94427032,30615.0,30614.0,0.58144945]
[1688235826299,0.92604063,30615.0,30614.0,0.58144945]
[1688235826503,0.94427032,30615.0,30614.0,0.5626]
[1688235827899,0.94427032,30615.0,30614.0,0.5624751]
[1688235841498,0.94427032,30615.0,30614.0,0.56239187]
[1688235842409,0.51413805,30615.0,30614.0,0.94279087]
[1688235842803,0.51413805,30615.0,30614.0,0.97271999]
[1688235844521,0.51413805,30615.0,30614.0,0.96164032]
[1688235845217,0.51413805,30615.0,30614.0,0.97271999]
[1688235847819,0.51413805,30615.0,30614.0,0.96164032]
[1688235848009,0.51413805,30615.0,30614.0,0.97271999]
[1688235851236,0.51413805,30615.0,30614.0,0.96164032]
[1688235852522,0.51413805,30615.0,30614.0,0.97271999]
[1688235852920,0.51413805,30615.0,30614.0,0.96164032]
[1688235853127,0.51413805,30615.0,30614.0,0.97271999]
[1688235854430,0.51413805,30615.0,30614.0,0.96164032]
[1688235855126,0.51413805,30615.0,30614.0,0.97250542]
[1688235855331,0.51413805,30615.0,30614.0,0.98693008]
[1688235856034,0.51413805,30615.0,30614.0,0.99800975]
[1688235856330,0.53236774,30615.0,30614.0,0.96808063]
[1688235856727,0.51413805,30615.0,30614.0,0.96808063]
[1688235858135,0.51413805,30615.0,30614.0,0.60728063]
[1688235858334,0.51413805,30615.0,30614.0,0.96808063]
[1688235862338,0.53236774,30615.0,30614.0,0.96808063]
[1688235862526,0.53236774,30615.0,30614.0,0.9222]
[1688235862726,0.55196674,30615.0,30614.0,0.2462]
[1688235863127,0.86876674,30615.0,30614.0,0.2462]
[1688235868940,0.86876674,30615.0,30614.0,0.24610843]
[1688235869240,1.11616674,30615.0,30613.0,0.2453]
[1688235869446,0.26492969,30614.0,30613.0,0.2453]
[1688235869628,0.28452869,30614.0,30613.0,0.2453]
[1688235869942,0.77764683,30614.0,30613.0,0.2453]
[1688235870536,0.77764683,30614.0,30612.0,0.267]
[1688235870737,0.26362969,30613.0,30612.0,0.267]
[1688235870937,0.28322969,30613.0,30612.0,0.267]
[1688235871141,0.77070109,30613.0,30612.0,0.267]
[1688235874242,0.52530109,30613.0,30612.0,0.267]
[1688235886562,0.52530109,30613.0,30612.0,0.266785]
[1688235894062,0.77200109,30613.0,30612.0,0.266785]
[1688235900077,0.77200109,30613.0,30612.0,0.26661679]
[1688235900574,0.77190849,30613.0,30612.0,0.26661679]
[1688235903374,0.77190849,30613.0,30612.0,0.59211679]
[1688235909584,0.77260849,30613.0,30612.0,0.3255]
[1688235909781,1.13340849,30613.0,30611.0,0.24728996]
[1688235909987,0.26562969,30612.0,30611.0,0.24728996]
[1688235910188,0.28522969,30612.0,30611.0,0.24728996]
[1688235910383,1.07941275,30612.0,30611.0,0.24728996]
[1688235911172,1.19703991,30612.0,30611.0,0.24728996]
[1688235912784,1.19703991,30612.0,30611.0,0.24714896]
[1688235914087,1.19703991,30612.0,30611.0,0.24774896]
[1688235914394,1.07941275,30612.0,30611.0,0.24774896]
[1688235915790,1.07941275,30612.0,30611.0,0.26734996]
[1688235924887,1.07941275,30612.0,30611.0,0.26722587]
[1688235934093,0.83201275,30612.0,30611.0,0.26722587]
[1688235937904,0.83201275,30612.0,30611.0,0.26706639]
[1688235951415,0.83201275,30612.0,30611.0,0.26684796]
[1688235957119,0.81378306,30612.0,30611.0,0.26684796]
[1688235957320,0.48778306,30612.0,30611.0,0.26684796]
[1688235957715,0.49172681,30613.0,30611.0,0.27802023]
[1688235957923,0.49172681,30613.0,30612.0,0.2474]
[1688235958126,0.49172681,30613.0,30612.0,0.267]
[1688235958525,0.49794184,30615.0,30612.0,0.267]
[1688235958526,0.50809917,30614.0,30612.0,0.267]
[1688235958718,0.50809917,30614.0,30613.0,0.2474]
[1688235958924,0.52769817,30614.0,30613.0,0.5811]
[1688235961314,0.50946848,30614.0,30613.0,0.5811]
[1688235961509,0.50946848,30614.0,30613.0,0.59994945]
[1688235963110,0.50946848,30614.0,30613.0,0.5811]
[1688235965126,0.48986948,30614.0,30613.0,0.59994945]
[1688235965317,0.50946848,30614.0,30613.0,0.59994945]
[1688235965719,0.5093556,30614.0,30613.0,0.59988543]
[1688235967930,0.4897566,30614.0,30613.0,0.59988543]
[1688235968132,0.4897566,30614.0,30613.0,0.6110577]
[1688235968628,0.4897566,30614.0,30613.0,0.59988543]
[1688235968827,0.4897566,30614.0,30613.0,0.6110577]
[1688235969130,0.4897566,30614.0,30613.0,0.59988543]
[1688235970124,0.4897566,30614.0,30613.0,0.6110577]
[1688235971124,0.4897566,30614.0,30613.0,0.59988543]
[1688235971932,0.4897566,30614.0,30613.0,0.58103598]
[1688235972730,0.4897566,30614.0,30613.0,0.59220825]
[1688235973026,0.4897566,30614.0,30613.0,0.58103598]
[1688235973422,0.4897566,30614.0,30613.0,0.59988543]
[1688235975723,0.52758529,30614.0,30613.0,0.58103598]
[1688235976134,0.5093556,30614.0,30613.0,0.58103598]
[1688235976327,0.52758529,30614.0,30613.0,0.58103598]
[1688235976922,0.52758529,30614.0,30613.0,0.56143598]
[1688235977226,0.5093556,30614.0,30613.0,0.56143598]
[1688235977426,0.52758529,30614.0,30613.0,0.56143598]
[1688235977832,0.5093556,30614.0,30613.0,0.56143598]
[1688235978431,0.5093556,30614.0,30613.0,0.56136211]
[1688235980237,0.52758529,30614.0,30613.0,0.56136211]
[1688235980438,0.5093556,30614.0,30613.0,0.56136211]
[1688235981330,0.5093556,30614.0,30613.0,0.58021156]
[1688235982332,0.4897566,30614.0,30613.0,0.59138383]
[1688235982532,0.4897566,30614.0,30613.0,0.61098383]
[1688235983343,0.5093556,30614.0,30613.0,0.58096211]
[1688235983835,0.5093556,30614.0,30613.0,0.56136211]
[1688235985055,0.57584862,30614.0,30613.0,0.57253438]
[1688235986349,0.57584862,30614.0,30613.0,0.56136211]
[1688235990253,0.57584862,30614.0,30613.0,0.59981156]
[1688235990442,0.55624962,30614.0,30613.0,0.59981156]
[1688235990745,0.4897566,30614.0,30613.0,0.59981156]
[1688235991154,0.4897566,30614.0,30613.0,0.61098383]
[1688235991446,0.4897566,30614.0,30613.0,0.59981156]
[1688235992039,0.4897566,30614.0,30613.0,0.61098383]
[1688235992447,0.4897566,30614.0,30613.0,0.59981156]
[1688235993342,0.4897566,30614.0,30613.0,0.59970312]
[1688235993944,0.5093556,30614.0,30613.0,0.61087539]
[1688235996753,0.5093556,30614.0,30613.0,0.59970312]
[1688235997342,0.5093556,30614.0,30613.0,0.61087539]
[1688235997853,0.4897566,30614.0,30613.0,0.59970312]
[1688235999056,0.4897566,30614.0,30613.0,0.61087539]
[1688235999363,0.4897566,30614.0,30613.0,0.58085367]
[1688235999556,0.5093556,30614.0,30613.0,0.58085367]
[1688235999856,0.52758529,30614.0,30613.0,0.24715367]
[1688236006554,0.52758529,30614.0,30613.0,0.24701431]
[1688236014361,0.52758529,30614.0,30613.0,0.26661431]
[1688236014756,0.52758529,30614.0,30613.0,0.28546376]
[1688236014957,0.5093556,30614.0,30613.0,0.28546376]
[1688236016554,0.52758529,30614.0,30613.0,0.28546376]
[1688236016754,0.50923508,30614.0,30613.0,0.28546376]
[1688236016946,0.48963608,30614.0,30613.0,0.28546376]
[1688236017151,0.50786577,30614.0,30613.0,0.28546376]
[1688236017351,0.48963608,30614.0,30613.0,0.28546376]
[1688236017647,0.50786577,30614.0,30613.0,0.28546376]
[1688236018159,0.48963608,30614.0,30613.0,0.28546376]
[1688236019762,0.50786577,30614.0,30613.0,0.28546376]
[1688236020154,0.50786577,30614.0,30613.0,0.26661431]
[1688236020867,0.48963608,30614.0,30613.0,0.28546376]
[1688236021363,0.48963608,30614.0,30613.0,0.26661431]
[1688236021764,0.50786577,30614.0,30613.0,0.26661431]
[1688236021957,0.48963608,30614.0,30613.0,0.26661431]
[1688236022357,0.50786577,30614.0,30613.0,0.26661431]
[1688236023964,0.48963608,30614.0,30613.0,0.26661431]
[1688236024453,0.50786577,30614.0,30613.0,0.26661431]
[1688236025278,0.48963608,30614.0,30613.0,0.28546376]
[1688236026171,0.48963608,30614.0,30613.0,0.29663603]
[1688236026871,0.50786577,30614.0,30613.0,0.28546376]
[1688236027060,0.50786577,30614.0,30613.0,0.26661431]
[1688236027061,0.48963608,30614.0,30613.0,0.26661431]
[1688236027670,0.47963608,30614.0,30613.0,0.26661431]
[1688236028969,0.47963608,30614.0,30613.0,0.28546376]
[1688236032061,0.47963608,30614.0,30613.0,0.26661431]
[1688236035476,0.47963608,30614.0,30613.0,0.29663603]
[1688236036973,0.47963608,30614.0,30613.0,0.28546376]
[1688236038474,0.47963608,30614.0,30613.0,0.29663603]
[1688236038665,0.47963608,30614.0,30613.0,0.28546376]
[1688236039064,0.47963608,30614.0,30613.0,0.29663603]
[1688236039463,0.47963608,30614.0,30613.0,0.28546376]
[1688236040671,0.47963608,30614.0,30613.0,0.28537427]
[1688236040867,0.47963608,30614.0,30613.0,0.26652482]
[1688236043077,0.47963608,30614.0,30613.0,0.28537427]
[1688236043472,0.47963608,30614.0,30613.0,0.29654654]
[1688236043674,0.47963608,30614.0,30613.0,0.28537427]
[1688236044370,0.47963608,30614.0,30613.0,0.26652482]
[1688236050267,0.47963608,30614.0,30613.0,0.27769709]
[1688236050473,0.47963608,30614.0,30613.0,0.26577427]
[1688236052879,0.47963608,30614.0,30613.0,0.27694654]
[1688236053268,0.47963608,30614.0,30613.0,0.26577427]
[1688236053973,0.47963608,30614.0,30613.0,0.27694654]
[1688236054378,0.47963608,30614.0,30613.0,0.26577427]
[1688236054681,0.54633134,30614.0,30613.0,0.26577427]
[1688236055275,0.54633134,30614.0,30613.0,0.26557783]
[1688236055673,0.54633134,30614.0,30613.0,0.28517783]
[1688236056082,0.54633134,30614.0,30613.0,0.2963501]
[1688236056282,0.47963608,30614.0,30613.0,0.2963501]
[1688236060089,0.49786577,30614.0,30613.0,0.28517783]
[1688236060282,0.47963608,30614.0,30613.0,0.28517783]
[1688236061884,0.49786577,30614.0,30613.0,0.26632838]
[1688236064089,0.47963608,30614.0,30613.0,0.26632838]
[1688236064393,0.49786577,30614.0,30613.0,0.26632838]
[1688236065194,0.47963608,30614.0,30613.0,0.26632838]
[1688236067095,0.47963608,30614.0,30613.0,0.28517783]
[1688236068094,0.47963608,30614.0,30613.0,0.2963501]
[1688236069280,0.47963608,30614.0,30613.0,0.28517783]
[1688236069795,0.47963608,30614.0,30613.0,0.2963501]
[1688236070189,0.47963608,30614.0,30613.0,0.29624869]
[1688236071297,0.47963608,30614.0,30613.0,0.28507642]
[1688236074194,0.47963608,30614.0,30613.0,0.53247642]
[1688236074692,0.47963608,30614.0,30613.0,0.54364869]
[1688236074892,0.47963608,30614.0,30613.0,0.53247642]
[1688236080204,0.479437,30614.0,30613.0,0.53247642]
[1688236080505,0.479437,30614.0,30613.0,0.54364869]
[1688236080806,0.479437,30614.0,30613.0,0.53247642]
[1688236081103,0.479437,30614.0,30613.0,0.54364869]
[1688236081304,0.479437,30614.0,30613.0,0.53247642]
[1688236081607,0.479437,30614.0,30613.0,0.54364869]
[1688236085699,0.811837,30614.0,30613.0,0.87304869]
[1688236085900,0.811837,30614.0,30613.0,0.86187642]
[1688236086312,0.811837,30614.0,30613.0,0.87304869]
[1688236087601,0.811837,30614.0,30613.0,0.86187642]
[1688236088208,0.811837,30614.0,30613.0,0.87304869]
[1688236091016,0.811837,30614.0,30613.0,1.23384869]
[1688236091709,0.811837,30614.0,30613.0,1.22267642]
[1688236093808,0.811837,30614.0,30613.0,1.20367721]
[1688236094201,0.811837,30614.0,30613.0,0.96744948]
[1688236094408,0.811837,30614.0,30613.0,0.95627721]
[1688236094909,0.83006669,30614.0,30613.0,0.95627721]
[1688236097708,0.811837,30614.0,30613.0,0.95627721]
[1688236098010,0.83006669,30614.0,30613.0,0.95627721]
[1688236098309,0.811837,30614.0,30613.0,0.95627721]
[1688236099011,0.83006669,30614.0,30613.0,0.95627721]
[1688236100100,0.811837,30614.0,30613.0,0.95627721]
[1688236100713,0.83006669,30614.0,30613.0,0.95627721]
[1688236101011,0.811837,30614.0,30613.0,0.95627721]
[1688236101603,0.811837,30614.0,30613.0,0.59547721]
[1688236103514,0.83006669,30614.0,30613.0,0.59547721]
[1688236103717,0.811837,30614.0,30613.0,0.59547721]
[1688236104215,0.83006669,30614.0,30613.0,0.59547721]
[1688236104411,0.811837,30614.0,30613.0,0.59547721]
[1688236105913,0.811837,30614.0,30613.0,0.61432666]
[1688236106805,0.811837,30614.0,30613.0,0.61413229]
[1688236107914,0.83006669,30614.0,30613.0,0.59528284]
[1688236108619,0.811837,30614.0,30613.0,0.59528284]
[1688236109123,0.811837,30614.0,30613.0,0.61413229]
[1688236109818,0.811837,30614.0,30613.0,0.62530456]
[1688236110123,0.811837,30614.0,30613.0,0.61413229]
[1688236110624,0.811837,30614.0,30613.0,0.59528284]
[1688236113121,0.811837,30614.0,30613.0,0.61413229]
[1688236115020,0.83006669,30614.0,30613.0,0.61413229]
[1688236115215,0.811837,30614.0,30613.0,0.59528284]
[1688236116510,0.83006669,30614.0,30613.0,0.59528284]
[1688236116715,0.811837,30614.0,30613.0,0.59528284]
[1688236120029,0.811837,30614.0,30613.0,0.60645511]
[1688236120212,0.811837,30614.0,30613.0,0.62530456]
[1688236120719,0.811837,30614.0,30613.0,0.62510154]
[1688236121929,0.811837,30614.0,30613.0,0.61392927]
[1688236122131,0.811837,30614.0,30613.0,0.62510154]
[1688236122330,0.811837,30614.0,30613.0,0.61392927]
[1688236124233,0.811837,30614.0,30613.0,0.85972927]
[1688236124817,0.811837,30614.0,30613.0,0.87090154]
[1688236125019,0.811837,30614.0,30613.0,0.85972927]
[1688236125430,0.811837,30614.0,30613.0,0.87090154]
[1688236127236,0.811837,30614.0,30613.0,0.85972927]
[1688236128033,0.811837,30614.0,30613.0,1.22052927]
[1688236129133,0.811837,30614.0,30613.0,1.23170154]
[1688236131926,0.811837,30614.0,30613.0,1.22052927]
[1688236132135,0.811837,30614.0,30613.0,1.23170154]
[1688236133033,0.811837,30614.0,30613.0,1.22052927]
[1688236134338,0.811837,30614.0,30613.0,1.23170154]
[1688236134535,0.811837,30614.0,30613.0,1.22052927]
[1688236134934,0.811837,30614.0,30613.0,1.23170154]
[1688236135137,0.811837,30614.0,30613.0,1.22052927]
[1688236135536,0.811837,30614.0,30613.0,1.23170154]
[1688236135738,0.811837,30614.0,30613.0,1.23149379]
[1688236136734,0.81175697,30614.0,30613.0,1.23149379]
[1688236138841,0.81175697,30614.0,30613.0,0.87069379]
[1688236139142,0.81175697,30614.0,30613.0,1.22032152]
[1688236139544,0.81175697,30614.0,30613.0,1.23149379]
[1688236144242,0.81175697,30614.0,30613.0,0.98569379]
[1688236146038,0.81175697,30614.0,30613.0,0.97452152]
[1688236146548,0.81175697,30614.0,30613.0,0.98569379]
[1688236147049,0.81175697,30614.0,30613.0,0.97452152]
[1688236147249,0.81175697,30614.0,30613.0,0.98569379]
[1688236147549,0.81175697,30614.0,30613.0,0.97452152]
[1688236147748,0.81175697,30614.0,30613.0,0.98569379]
[1688236148045,0.81175697,30614.0,30613.0,0.97452152]
[1688236148742,0.81175697,30614.0,30613.0,0.98569379]
[1688236150641,0.81175697,30614.0,30613.0,0.98553248]
[1688236154150,0.81175697,30614.0,30613.0,1.23293248]
[1688236163244,0.81175697,30614.0,30613.0,1.23271907]
[1688236164754,0.81175697,30614.0,30613.0,0.87191907]
[1688236164950,0.81175697,30614.0,30613.0,1.23271907]
[1688236166056,0.80375697,30614.0,30613.0,1.23271907]
[1688236168756,0.80375697,30614.0,30613.0,1.2215468]
[1688236169052,0.80375697,30614.0,30613.0,1.23271907]
[1688236174553,0.80375697,30614.0,30613.0,1.2215468]
[1688236175064,0.80375697,30614.0,30613.0,1.23271907]
[1688236177964,0.80375697,30614.0,30613.0,1.2215468]
[1688236178864,0.80375697,30614.0,30613.0,1.23271907]
[1688236179573,0.80375697,30614.0,30613.0,1.22135348]
[1688236179764,0.80375697,30614.0,30613.0,1.23252575]
[1688236180375,0.82335597,30614.0,30613.0,1.23252575]
[1688236180560,0.80375697,30614.0,30613.0,1.23252575]
[1688236182775,0.80375697,30614.0,30613.0,1.22135348]
[1688236182963,0.80375697,30614.0,30613.0,1.23252575]
[1688236183959,0.80375697,30614.0,30613.0,0.87172575]
[1688236187267,0.82198666,30614.0,30613.0,0.84170403]
[1688236187664,0.88838498,30614.0,30613.0,0.84170403]